[Event "*** Titled Tuesday Blitz"]
[Site "Chess.com"]
[Date "2018.09.04"]
[Round "2"]
[White "Aryangholami"]
[Black "Haykos"]
[Result "1/2-1/2"]
[WhiteElo "2727"]
[BlackElo "2536"]
[TimeControl "180+2"]
[EndTime "14:03:35 PDT"]
[Termination "Game drawn by 50-move rule"]

1. Nf3 {[%clk 0:03:01.9]} 1... Nf6 {[%clk 0:02:59.5]} 2. g3 {[%clk 0:03:02.7]}
2... b6 {[%clk 0:03:00.2]} 3. Bg2 {[%clk 0:03:02.9]} 3... Bb7 {[%clk 0:03:02.1]}
4. O-O {[%clk 0:03:04]} 4... e6 {[%clk 0:03:03.6]} 5. d3 {[%clk 0:03:03.6]} 5...
d5 {[%clk 0:03:03.6]} 6. Nbd2 {[%clk 0:03:04]} 6... c5 {[%clk 0:03:04.8]} 7. Re1
{[%clk 0:03:02]} 7... Nbd7 {[%clk 0:03:05.3]} 8. e4 {[%clk 0:03:02.9]} 8... dxe4
{[%clk 0:03:06.7]} 9. dxe4 {[%clk 0:03:04.8]} 9... Be7 {[%clk 0:03:08]} 10. Qe2
{[%clk 0:03:04.1]} 10... O-O {[%clk 0:03:08.1]} 11. c3 {[%clk 0:03:04.3]} 11...
a6 {[%clk 0:03:09.3]} 12. e5 {[%clk 0:03:03.1]} 12... Nd5 {[%clk 0:03:09.7]} 13.
Ne4 {[%clk 0:03:03.8]} 13... b5 {[%clk 0:03:09.9]} 14. b3 {[%clk 0:02:51.7]}
14... Qc7 {[%clk 0:03:08.7]} 15. c4 {[%clk 0:02:45.2]} 15... bxc4 {[%clk
0:02:17.1]} 16. bxc4 {[%clk 0:02:47.1]} 16... Nb4 {[%clk 0:02:18.5]} 17. Bf4
{[%clk 0:02:45.1]} 17... Rfd8 {[%clk 0:02:14.4]} 18. Nd6 {[%clk 0:02:39.2]}
18... Rab8 {[%clk 0:01:55.5]} 19. Nxb7 {[%clk 0:02:10.4]} 19... Qxb7 {[%clk
0:01:49.4]} 20. Ng5 {[%clk 0:01:49.9]} 20... Qc7 {[%clk 0:01:50]} 21. Qg4 {[%clk
0:01:44.6]} 21... Nf8 {[%clk 0:01:47.4]} 22. Re2 {[%clk 0:01:30.8]} 22... Nd3
{[%clk 0:01:47]} 23. Qh5 {[%clk 0:01:22.9]} 23... Bxg5 {[%clk 0:01:09.5]} 24.
Bxg5 {[%clk 0:01:21.6]} 24... Rd4 {[%clk 0:01:11]} 25. Be4 {[%clk 0:01:04.2]}
25... Rb4 {[%clk 0:00:16.6]} 26. Re3 {[%clk 0:00:48]} 26... Nxe5 {[%clk
0:00:16.3]} 27. Bf4 {[%clk 0:00:44]} 27... f6 {[%clk 0:00:17.6]} 28. Bxe5 {[%clk
0:00:38.6]} 28... fxe5 {[%clk 0:00:18.9]} 29. Bd3 {[%clk 0:00:34.5]} 29... e4
{[%clk 0:00:20.3]} 30. Bf1 {[%clk 0:00:33.3]} 30... Qf7 {[%clk 0:00:21.5]} 31.
Qe2 {[%clk 0:00:30.6]} 31... Nd7 {[%clk 0:00:21.4]} 32. Rxe4 {[%clk 0:00:31.3]}
32... Rxe4 {[%clk 0:00:22.9]} 33. Qxe4 {[%clk 0:00:33.2]} 33... Rb2 {[%clk
0:00:24.8]} 34. Qe3 {[%clk 0:00:32]} 34... Qf6 {[%clk 0:00:25]} 35. Rd1 {[%clk
0:00:31.5]} 35... Nf8 {[%clk 0:00:26.4]} 36. a3 {[%clk 0:00:27.6]} 36... Rc2
{[%clk 0:00:26.2]} 37. Qxc5 {[%clk 0:00:28]} 37... Rc3 {[%clk 0:00:23.3]} 38. a4
{[%clk 0:00:18.1]} 38... h5 {[%clk 0:00:22.2]} 39. Qxh5 {[%clk 0:00:16.4]} 39...
Ra3 {[%clk 0:00:22.9]} 40. Qa5 {[%clk 0:00:14.7]} 40... Ra2 {[%clk 0:00:22.4]}
41. Rd2 {[%clk 0:00:15.1]} 41... Ra1 {[%clk 0:00:22.2]} 42. Qc5 {[%clk
0:00:16.1]} 42... Qf3 {[%clk 0:00:19.4]} 43. Qe3 {[%clk 0:00:16.5]} 43... Qxe3
{[%clk 0:00:19.4]} 44. fxe3 {[%clk 0:00:18.4]} 44... Rxa4 {[%clk 0:00:20.5]} 45.
c5 {[%clk 0:00:19.9]} 45... Rb4 {[%clk 0:00:19.2]} 46. c6 {[%clk 0:00:19.4]}
46... Rb6 {[%clk 0:00:17.9]} 47. c7 {[%clk 0:00:19]} 47... Rc6 {[%clk 0:00:19]}
48. Bxa6 {[%clk 0:00:15.8]} 48... Rxc7 {[%clk 0:00:20]} 49. Rd8 {[%clk
0:00:17.1]} 49... Kf7 {[%clk 0:00:20.8]} 50. Bf1 {[%clk 0:00:17.7]} 50... Nd7
{[%clk 0:00:21.9]} 51. Ra8 {[%clk 0:00:18.1]} 51... Ne5 {[%clk 0:00:23.1]} 52.
Ra2 {[%clk 0:00:18.1]} 52... Rc3 {[%clk 0:00:24.2]} 53. Re2 {[%clk 0:00:17.4]}
53... Ng4 {[%clk 0:00:25.5]} 54. e4 {[%clk 0:00:17.7]} 54... Kf6 {[%clk
0:00:26.6]} 55. Bh3 {[%clk 0:00:17.2]} 55... Ne5 {[%clk 0:00:27.7]} 56. Rf2+
{[%clk 0:00:17.7]} 56... Ke7 {[%clk 0:00:28.6]} 57. Re2 {[%clk 0:00:17.3]} 57...
Nf3+ {[%clk 0:00:29.1]} 58. Kg2 {[%clk 0:00:17.5]} 58... Ng5 {[%clk 0:00:30.6]}
59. Bg4 {[%clk 0:00:17.6]} 59... Rc4 {[%clk 0:00:30.9]} 60. Bf3 {[%clk
0:00:18.7]} 60... Rc3 {[%clk 0:00:31.5]} 61. Bh5 {[%clk 0:00:18.7]} 61... Rc4
{[%clk 0:00:32.9]} 62. e5 {[%clk 0:00:19.9]} 62... Rc5 {[%clk 0:00:31.9]} 63. h4
{[%clk 0:00:20]} 63... Nf7 {[%clk 0:00:33.3]} 64. Bxf7 {[%clk 0:00:19.4]} 64...
Kxf7 {[%clk 0:00:35.2]} 65. Kf3 {[%clk 0:00:20.8]} 65... Rc4 {[%clk 0:00:36.3]}
66. Re4 {[%clk 0:00:21.3]} 66... Rc3+ {[%clk 0:00:37.2]} 67. Kg4 {[%clk
0:00:22.4]} 67... Kg6 {[%clk 0:00:38.5]} 68. h5+ {[%clk 0:00:20.3]} 68... Kh6
{[%clk 0:00:39.8]} 69. Kh4 {[%clk 0:00:21.6]} 69... Rc1 {[%clk 0:00:36]} 70. g4
{[%clk 0:00:21.4]} 70... g5+ {[%clk 0:00:35.7]} 71. Kg3 {[%clk 0:00:21.2]} 71...
Rc3+ {[%clk 0:00:35.5]} 72. Kf2 {[%clk 0:00:22.2]} 72... Kg7 {[%clk 0:00:35.2]}
73. Re3 {[%clk 0:00:19.7]} 73... Rc4 {[%clk 0:00:35.3]} 74. Kf3 {[%clk
0:00:20.5]} 74... Rf4+ {[%clk 0:00:36.3]} 75. Kg3 {[%clk 0:00:21.8]} 75... Rb4
{[%clk 0:00:37.8]} 76. Rd3 {[%clk 0:00:21.5]} 76... Rb5 {[%clk 0:00:38.8]} 77.
Re3 {[%clk 0:00:18.8]} 77... Rb4 {[%clk 0:00:40.2]} 78. Re2 {[%clk 0:00:19.5]}
78... Rb3+ {[%clk 0:00:40.2]} 79. Kf2 {[%clk 0:00:19.6]} 79... Rb4 {[%clk
0:00:40.8]} 80. Kf3 {[%clk 0:00:20.8]} 80... Rf4+ {[%clk 0:00:40.8]} 81. Kg3
{[%clk 0:00:22.2]} 81... Rb4 {[%clk 0:00:42.3]} 82. Re3 {[%clk 0:00:21]} 82...
Rc4 {[%clk 0:00:40.8]} 83. Ra3 {[%clk 0:00:20.8]} 83... Rc5 {[%clk 0:00:41.6]}
84. Re3 {[%clk 0:00:21.4]} 84... Rc4 {[%clk 0:00:42.2]} 85. Kh3 {[%clk
0:00:20.7]} 85... Rb4 {[%clk 0:00:42]} 86. Kg3 {[%clk 0:00:17.6]} 86... Rc4
{[%clk 0:00:43.1]} 87. Kf3 {[%clk 0:00:17.4]} 87... Rf4+ {[%clk 0:00:44]} 88.
Kg3 {[%clk 0:00:18.6]} 88... Rb4 {[%clk 0:00:44.3]} 89. Re2 {[%clk 0:00:15]}
89... Rb3+ {[%clk 0:00:44.7]} 90. Kf2 {[%clk 0:00:15.2]} 90... Rb4 {[%clk
0:00:46.2]} 91. Kf3 {[%clk 0:00:16.4]} 91... Rf4+ {[%clk 0:00:47.4]} 92. Kg3
{[%clk 0:00:18.3]} 92... Rb4 {[%clk 0:00:48.4]} 93. Rd2 {[%clk 0:00:18.9]} 93...
Rb5 {[%clk 0:00:49.6]} 94. Rd7+ {[%clk 0:00:19.9]} 94... Kh6 {[%clk 0:00:50.7]}
95. Rf7 {[%clk 0:00:19]} 95... Rxe5 {[%clk 0:00:51.7]} 96. Rf6+ {[%clk
0:00:20.2]} 96... Kh7 {[%clk 0:00:53.1]} 97. Kf3 {[%clk 0:00:20.1]} 97... Kg7
{[%clk 0:00:53.5]} 98. Rg6+ {[%clk 0:00:20.6]} 98... Kh7 {[%clk 0:00:55.1]} 99.
Kf2 {[%clk 0:00:21.7]} 99... Kh8 {[%clk 0:00:56.1]} 100. Kf3 {[%clk 0:00:22.6]}
100... Kh7 {[%clk 0:00:57.5]} 101. Rf6 {[%clk 0:00:23.8]} 101... Kg7 {[%clk
0:00:58.7]} 102. Rg6+ {[%clk 0:00:24.8]} 102... Kh7 {[%clk 0:01:00]} 103. Kf2
{[%clk 0:00:24.9]} 103... Kh8 {[%clk 0:01:01.3]} 104. Kg3 {[%clk 0:00:22.8]}
104... Re3+ {[%clk 0:01:01]} 105. Kg2 {[%clk 0:00:22.1]} 105... Re5 {[%clk
0:01:02.9]} 106. Rf6 {[%clk 0:00:20.7]} 106... Kg7 {[%clk 0:01:04.1]} 107. Rf2
{[%clk 0:00:21.4]} 107... Re4 {[%clk 0:01:03.9]} 108. Kf3 {[%clk 0:00:21.7]}
108... Rf4+ {[%clk 0:01:04.9]} 109. Kg3 {[%clk 0:00:23.2]} 109... Re4 {[%clk
0:00:50]} 110. Rf3 {[%clk 0:00:19.7]} 110... Rc4 {[%clk 0:00:47.1]} 111. Re3
{[%clk 0:00:19.5]} 111... Kf6 {[%clk 0:00:47.9]} 112. Rf3+ {[%clk 0:00:19.2]}
112... Kg7 {[%clk 0:00:48.8]} 113. Ra3 {[%clk 0:00:19.8]} 113... Kf6 {[%clk
0:00:48.8]} 114. Kf3 {[%clk 0:00:18.4]} 114... Rf4+ {[%clk 0:00:49.3]} 115. Kg3
{[%clk 0:00:19.4]} 115... Rc4 {[%clk 0:00:50.8]} 116. Rb3 {[%clk 0:00:20.2]}
116... Rd4 {[%clk 0:00:50.6]} 117. Rc3 {[%clk 0:00:20.9]} 117... Rb4 {[%clk
0:00:51.6]} 118. Re3 {[%clk 0:00:16.3]} 118... Rc4 {[%clk 0:00:48.1]} 119. Re2
{[%clk 0:00:15.5]} 119... Rc3+ {[%clk 0:00:48.8]} 120. Kf2 {[%clk 0:00:15.5]}
120... Rc4 {[%clk 0:00:47.7]} 121. Kf3 {[%clk 0:00:15.9]} 121... Rf4+ {[%clk
0:00:48.7]} 122. Kg3 {[%clk 0:00:17.3]} 122... Rb4 {[%clk 0:00:49.7]} 123. Rf2+
{[%clk 0:00:18]} 123... Kg7 {[%clk 0:00:50.6]} 124. Kf3 {[%clk 0:00:12.4]}
124... Rf4+ {[%clk 0:00:50.8]} 125. Kg3 {[%clk 0:00:13.5]} 125... Rb4 {[%clk
0:00:51.4]} 126. Re2 {[%clk 0:00:14.3]} 126... Kf6 {[%clk 0:00:52.4]} 127. Rf2+
{[%clk 0:00:15.2]} 127... Kg7 {[%clk 0:00:53.3]} 128. Rf3 {[%clk 0:00:16.7]}
128... Rc4 {[%clk 0:00:53.8]} 129. Rd3 {[%clk 0:00:17.4]} 129... Kf6 {[%clk
0:00:54.8]} 130. Rf3+ {[%clk 0:00:18]} 130... Kg7 {[%clk 0:00:55.7]} 131. Rf2
{[%clk 0:00:17.9]} 131... Rb4 {[%clk 0:00:56.3]} 132. Ra2 {[%clk 0:00:17.3]}
132... Rb3+ {[%clk 0:00:57.5]} 133. Kf2 {[%clk 0:00:18.2]} 133... Rb4 {[%clk
0:00:56.7]} 134. Kf3 {[%clk 0:00:19.2]} 134... Rf4+ {[%clk 0:00:57.4]} 135. Kg3
{[%clk 0:00:20]} 135... Rb4 {[%clk 0:00:57.5]} 136. Ra6 {[%clk 0:00:19.6]}
136... Kf6 {[%clk 0:00:58.3]} 137. Ra7 {[%clk 0:00:20.7]} 137... Rb3+ {[%clk
0:00:59]} 138. Kf2 {[%clk 0:00:21.6]} 138... Rb2+ {[%clk 0:00:59.9]} 139. Ke3
{[%clk 0:00:21.5]} 139... Rb3+ {[%clk 0:01:01.4]} 140. Ke4 {[%clk 0:00:21.8]}
140... Rb4+ {[%clk 0:01:02.6]} 141. Kf3 {[%clk 0:00:22.8]} 141... Rb3+ {[%clk
0:01:04.1]} 142. Ke2 {[%clk 0:00:23.1]} 142... Rb2+ {[%clk 0:01:05.4]} 143. Kd3
{[%clk 0:00:20.4]} 143... Rb3+ {[%clk 0:01:04.3]} 144. Ke2 {[%clk 0:00:19.2]}
144... Rb2+ {[%clk 0:01:05.1]} 145. Kf3 {[%clk 0:00:16.6]} 145... Rb3+ {[%clk
0:01:05.8]} 1/2-1/2

[Event "*** Titled Tuesday Blitz"]
[Site "Chess.com"]
[Date "2018.09.04"]
[Round "3"]
[White "rasmussvane"]
[Black "Arm-Akiba"]
[Result "1-0"]
[WhiteElo "2707"]
[BlackElo "2750"]
[TimeControl "180+2"]
[EndTime "14:05:56 PDT"]
[Termination "rasmussvane won by resignation"]

1. Nf3 {[%clk 0:03:01.9]} 1... Nf6 {[%clk 0:03:00.4]} 2. c4 {[%clk 0:03:03]}
2... e6 {[%clk 0:03:00.9]} 3. Nc3 {[%clk 0:03:03.6]} 3... c5 {[%clk 0:03:00.4]}
4. g3 {[%clk 0:03:04.1]} 4... b6 {[%clk 0:03:00.5]} 5. Bg2 {[%clk 0:03:05.2]}
5... Bb7 {[%clk 0:03:01.7]} 6. O-O {[%clk 0:03:06.1]} 6... Be7 {[%clk
0:03:00.9]} 7. d4 {[%clk 0:03:07.2]} 7... cxd4 {[%clk 0:03:00.7]} 8. Qxd4 {[%clk
0:03:09.1]} 8... O-O {[%clk 0:02:57.7]} 9. Rd1 {[%clk 0:03:07.4]} 9... d6 {[%clk
0:02:56]} 10. Bg5 {[%clk 0:03:07.3]} 10... Nc6 {[%clk 0:02:55]} 11. Qf4 {[%clk
0:03:08.2]} 11... Qb8 {[%clk 0:02:49.1]} 12. Nb5 {[%clk 0:03:08.9]} 12... Ne5
{[%clk 0:02:43.8]} 13. Bxf6 {[%clk 0:03:07.4]} 13... Bxf6 {[%clk 0:02:41.4]} 14.
Nxd6 {[%clk 0:03:08.5]} 14... Nxf3+ {[%clk 0:02:37.4]} 15. Bxf3 {[%clk
0:03:08.8]} 15... Bxf3 {[%clk 0:02:33.8]} 16. Qxf3 {[%clk 0:03:10.3]} 16... Bxb2
{[%clk 0:02:32.7]} 17. Rab1 {[%clk 0:03:11.8]} 17... Ba3 {[%clk 0:02:16.9]} 18.
Qxa3 {[%clk 0:03:11.4]} 1-0

[Event "*** Titled Tuesday Blitz"]
[Site "Chess.com"]
[Date "2018.09.04"]
[Round "3"]
[White "Eliwood44"]
[Black "timator"]
[Result "0-1"]
[WhiteElo "2164"]
[BlackElo "2401"]
[TimeControl "180+2"]
[EndTime "14:07:18 PDT"]
[Termination "timator won by resignation"]

1. d4 {[%clk 0:03:01.9]} 1... Nf6 {[%clk 0:03:00.5]} 2. Nf3 {[%clk 0:03:02.6]}
2... e6 {[%clk 0:03:00.9]} 3. Bg5 {[%clk 0:02:42.3]} 3... d5 {[%clk 0:02:58.7]}
4. e3 {[%clk 0:02:42.9]} 4... Be7 {[%clk 0:02:58.9]} 5. Bd3 {[%clk 0:02:43.4]}
5... h6 {[%clk 0:02:59.9]} 6. Bh4 {[%clk 0:02:44]} 6... b6 {[%clk 0:02:58.8]} 7.
O-O {[%clk 0:02:44]} 7... Bb7 {[%clk 0:03:00]} 8. Nbd2 {[%clk 0:02:44.1]} 8...
O-O {[%clk 0:03:01.1]} 9. a4 {[%clk 0:02:44.2]} 9... a6 {[%clk 0:03:01]} 10. c3
{[%clk 0:02:44.7]} 10... c5 {[%clk 0:03:02]} 11. Re1 {[%clk 0:02:44.7]} 11...
Nbd7 {[%clk 0:03:01.6]} 12. dxc5 {[%clk 0:02:45.8]} 12... Nxc5 {[%clk
0:03:02.2]} 13. Bc2 {[%clk 0:02:46.9]} 13... Nfe4 {[%clk 0:03:03.5]} 14. Nxe4
{[%clk 0:02:47.5]} 14... Bxh4 {[%clk 0:02:54]} 15. Nxc5 {[%clk 0:02:44.6]} 15...
bxc5 {[%clk 0:02:53.8]} 16. Qd3 {[%clk 0:02:44.1]} 16... g6 {[%clk 0:02:51.8]}
17. Rad1 {[%clk 0:02:42.1]} 17... Bf6 {[%clk 0:02:50.5]} 18. Qd2 {[%clk
0:02:37.3]} 18... Qb6 {[%clk 0:02:46.9]} 19. e4 {[%clk 0:02:36.6]} 19... Rad8
{[%clk 0:02:47.2]} 20. exd5 {[%clk 0:02:35.8]} 20... Bxd5 {[%clk 0:02:47.8]} 21.
Qxh6 {[%clk 0:02:35.2]} 21... Bg7 {[%clk 0:02:37.1]} 22. Qh3 {[%clk 0:02:31.4]}
22... Bxf3 {[%clk 0:02:36]} 23. Qxf3 {[%clk 0:02:33.3]} 23... Qxb2 {[%clk
0:02:36.3]} 24. Be4 {[%clk 0:02:26.9]} 24... Qxc3 {[%clk 0:02:28]} 0-1

[Event "*** Titled Tuesday Blitz"]
[Site "Chess.com"]
[Date "2018.09.04"]
[Round "3"]
[White "Alexander_Moskalenko"]
[Black "GhostOfGreenval"]
[Result "1-0"]
[WhiteElo "2810"]
[BlackElo "2458"]
[TimeControl "180+2"]
[EndTime "14:07:36 PDT"]
[Termination "Alexander_Moskalenko won by resignation"]

1. c4 {[%clk 0:03:01.9]} 1... Nf6 {[%clk 0:02:59.6]} 2. Nc3 {[%clk 0:03:02.6]}
2... g6 {[%clk 0:03:01.1]} 3. d4 {[%clk 0:03:01.3]} 3... d5 {[%clk 0:03:01.7]}
4. Nf3 {[%clk 0:03:01]} 4... Bg7 {[%clk 0:03:02.7]} 5. h4 {[%clk 0:03:02.6]}
5... c6 {[%clk 0:02:59.5]} 6. Bf4 {[%clk 0:03:02.2]} 6... Ne4 {[%clk 0:02:41.2]}
7. h5 {[%clk 0:03:00.1]} 7... Nxc3 {[%clk 0:02:37]} 8. bxc3 {[%clk 0:02:59.4]}
8... dxc4 {[%clk 0:02:35.9]} 9. h6 {[%clk 0:02:52.6]} 9... Bf6 {[%clk
0:02:36.9]} 10. e4 {[%clk 0:02:54.2]} 10... e6 {[%clk 0:02:24.4]} 11. Bxc4
{[%clk 0:02:54.8]} 11... Qa5 {[%clk 0:02:22.6]} 12. Rc1 {[%clk 0:02:54]} 12...
O-O {[%clk 0:02:20.9]} 13. e5 {[%clk 0:02:49.2]} 13... Bh8 {[%clk 0:02:21.9]}
14. Ng5 {[%clk 0:02:42.8]} 14... Na6 {[%clk 0:02:12.7]} 15. Ne4 {[%clk
0:02:39.8]} 15... Nc7 {[%clk 0:02:08.4]} 16. Bg5 {[%clk 0:02:40.9]} 16... Nd5
{[%clk 0:02:08.1]} 17. Qf3 {[%clk 0:02:41.4]} 17... f5 {[%clk 0:01:58.1]} 18.
exf6 {[%clk 0:02:41.5]} 18... Bd7 {[%clk 0:01:46.5]} 19. O-O {[%clk 0:02:33]}
19... Ne7 {[%clk 0:01:35.3]} 20. Nc5 {[%clk 0:02:24.7]} 1-0

[Event "*** Titled Tuesday Blitz"]
[Site "Chess.com"]
[Date "2018.09.04"]
[Round "3"]
[White "GMWSO"]
[Black "PaulfromSPb"]
[Result "1-0"]
[WhiteElo "2965"]
[BlackElo "2646"]
[TimeControl "180+2"]
[EndTime "14:07:50 PDT"]
[Termination "GMWSO won by resignation"]

1. d4 {[%clk 0:03:01.9]} 1... Nf6 {[%clk 0:03:00.1]} 2. Bf4 {[%clk 0:03:00.4]}
2... e6 {[%clk 0:02:55.1]} 3. e3 {[%clk 0:03:00.9]} 3... b6 {[%clk 0:02:54.4]}
4. Nd2 {[%clk 0:03:00.9]} 4... Bb7 {[%clk 0:02:55]} 5. Ngf3 {[%clk 0:03:01.3]}
5... c5 {[%clk 0:02:54.7]} 6. Nc4 {[%clk 0:03:01.8]} 6... d5 {[%clk 0:02:52.2]}
7. Nce5 {[%clk 0:03:02.3]} 7... a6 {[%clk 0:02:53]} 8. Ng5 {[%clk 0:03:02.6]}
8... Qe7 {[%clk 0:02:22.1]} 9. Nexf7 {[%clk 0:02:57.8]} 9... Rg8 {[%clk
0:02:22.6]} 10. Nd6+ {[%clk 0:02:55.2]} 10... Kd8 {[%clk 0:02:21.6]} 11. Nxb7+
{[%clk 0:02:55.7]} 11... Qxb7 {[%clk 0:02:21.9]} 12. Nxe6+ {[%clk 0:02:56.5]}
12... Ke8 {[%clk 0:02:19.9]} 13. Nc7+ {[%clk 0:02:55.8]} 13... Kf7 {[%clk
0:02:20.9]} 14. Nxa8 {[%clk 0:02:56.5]} 14... Qxa8 {[%clk 0:02:22.8]} 15. Be2
{[%clk 0:02:42.4]} 15... Nc6 {[%clk 0:02:23]} 16. O-O {[%clk 0:02:43.2]} 16...
Be7 {[%clk 0:02:23.8]} 17. Be5 {[%clk 0:02:41]} 17... Rd8 {[%clk 0:02:21.8]} 18.
Bxf6 {[%clk 0:02:41.3]} 18... Bxf6 {[%clk 0:02:22.2]} 19. c3 {[%clk 0:02:42.5]}
19... c4 {[%clk 0:02:19.9]} 20. b3 {[%clk 0:02:42.8]} 20... b5 {[%clk
0:02:20.9]} 21. a4 {[%clk 0:02:43.8]} 21... Qb8 {[%clk 0:02:20.5]} 22. axb5
{[%clk 0:02:43.3]} 22... axb5 {[%clk 0:02:21.4]} 23. Qb1 {[%clk 0:02:42.2]}
23... Kg8 {[%clk 0:02:21.1]} 24. bxc4 {[%clk 0:02:42.7]} 24... dxc4 {[%clk
0:02:21.5]} 25. Bf3 {[%clk 0:02:39.3]} 25... Qb6 {[%clk 0:02:15.3]} 26. Qe4
{[%clk 0:02:34]} 26... Ne7 {[%clk 0:02:15.1]} 27. Ra8 {[%clk 0:02:33.8]} 27...
Rxa8 {[%clk 0:02:14.8]} 28. Qxa8+ {[%clk 0:02:35.7]} 28... Kf7 {[%clk
0:02:16.2]} 29. Bd5+ {[%clk 0:02:35.9]} 29... Kg6 {[%clk 0:02:16.4]} 30. Rb1
{[%clk 0:02:34.4]} 30... h5 {[%clk 0:02:02.2]} 31. Bxc4 {[%clk 0:02:32]} 31...
Qc7 {[%clk 0:02:01.5]} 32. Bd3+ {[%clk 0:02:31.8]} 32... Kf7 {[%clk 0:02:02]}
33. Qa3 {[%clk 0:02:31]} 33... Nd5 {[%clk 0:02:00.7]} 34. Qb3 {[%clk 0:02:31.5]}
1-0

[Event "*** Titled Tuesday Blitz"]
[Site "Chess.com"]
[Date "2018.09.04"]
[Round "3"]
[White "jefferyx"]
[Black "Margency"]
[Result "1-0"]
[WhiteElo "2762"]
[BlackElo "2692"]
[TimeControl "180+2"]
[EndTime "14:08:16 PDT"]
[Termination "jefferyx won by resignation"]

1. d4 {[%clk 0:03:01.9]} 1... Nf6 {[%clk 0:03:00.7]} 2. Nf3 {[%clk 0:03:03.4]}
2... g6 {[%clk 0:03:01.7]} 3. Nbd2 {[%clk 0:03:04.9]} 3... Bg7 {[%clk
0:03:00.7]} 4. e4 {[%clk 0:03:06.2]} 4... d5 {[%clk 0:03:01.8]} 5. e5 {[%clk
0:02:58.2]} 5... Ne4 {[%clk 0:03:02.8]} 6. Bd3 {[%clk 0:02:59.6]} 6... c5 {[%clk
0:02:51.8]} 7. c3 {[%clk 0:02:37]} 7... Bf5 {[%clk 0:02:42.2]} 8. Nh4 {[%clk
0:02:26.2]} 8... Nxf2 {[%clk 0:02:25.1]} 9. Bb5+ {[%clk 0:02:26.8]} 9... Bd7
{[%clk 0:02:10.1]} 10. Bxd7+ {[%clk 0:02:27.5]} 10... Qxd7 {[%clk 0:02:08.6]}
11. Kxf2 {[%clk 0:02:29.4]} 11... O-O {[%clk 0:02:03.2]} 12. Re1 {[%clk
0:01:59.3]} 12... e6 {[%clk 0:01:53.6]} 13. Nhf3 {[%clk 0:01:59.8]} 13... Nc6
{[%clk 0:01:54.3]} 14. Kg1 {[%clk 0:02:00.6]} 14... cxd4 {[%clk 0:01:52.8]} 15.
cxd4 {[%clk 0:02:01.7]} 15... f6 {[%clk 0:01:54.1]} 16. exf6 {[%clk 0:02:02.5]}
16... Rxf6 {[%clk 0:01:54.6]} 17. Nb3 {[%clk 0:02:04.1]} 17... Raf8 {[%clk
0:01:53.4]} 18. Bg5 {[%clk 0:02:03.5]} 18... Rf5 {[%clk 0:01:48.1]} 19. Nc5
{[%clk 0:02:04.5]} 19... Qc8 {[%clk 0:01:45.7]} 20. Nxe6 {[%clk 0:02:05.5]} 1-0

[Event "*** Titled Tuesday Blitz"]
[Site "Chess.com"]
[Date "2018.09.04"]
[Round "3"]
[White "GMHess"]
[Black "alpasya2009"]
[Result "0-1"]
[WhiteElo "2677"]
[BlackElo "2463"]
[TimeControl "180+2"]
[EndTime "14:09:24 PDT"]
[Termination "alpasya2009 won by resignation"]

1. d4 {[%clk 0:03:01.9]} 1... Nf6 {[%clk 0:02:58.3]} 2. c4 {[%clk 0:02:48.4]}
2... g6 {[%clk 0:02:58]} 3. Nc3 {[%clk 0:02:49.9]} 3... Bg7 {[%clk 0:02:59.4]}
4. e4 {[%clk 0:02:50.5]} 4... d6 {[%clk 0:03:01.3]} 5. Nf3 {[%clk 0:02:48.3]}
5... O-O {[%clk 0:03:01.4]} 6. Be2 {[%clk 0:02:49.9]} 6... e5 {[%clk 0:03:02.1]}
7. d5 {[%clk 0:02:49.6]} 7... a5 {[%clk 0:03:02]} 8. O-O {[%clk 0:02:50.9]} 8...
Na6 {[%clk 0:03:02.2]} 9. Be3 {[%clk 0:02:51.6]} 9... Ng4 {[%clk 0:03:02.1]} 10.
Bg5 {[%clk 0:02:51.8]} 10... f6 {[%clk 0:03:03.6]} 11. Bc1 {[%clk 0:02:50.2]}
11... f5 {[%clk 0:03:01.9]} 12. Ng5 {[%clk 0:02:42.9]} 12... Nc5 {[%clk
0:02:41.5]} 13. exf5 {[%clk 0:02:29.9]} 13... gxf5 {[%clk 0:02:43.4]} 14. f4
{[%clk 0:01:40.6]} 14... h6 {[%clk 0:02:16.3]} 15. fxe5 {[%clk 0:01:30.5]} 15...
hxg5 {[%clk 0:02:04.4]} 16. e6 {[%clk 0:01:30.2]} 16... Ne5 {[%clk 0:01:58.8]}
17. Qc2 {[%clk 0:01:08.2]} 17... Nxe6 {[%clk 0:01:48.4]} 18. dxe6 {[%clk
0:01:10.1]} 18... Bxe6 {[%clk 0:01:49.3]} 19. b3 {[%clk 0:01:07.2]} 19... Nc6
{[%clk 0:01:43]} 20. Bd3 {[%clk 0:01:01.6]} 20... Nb4 {[%clk 0:01:34.5]} 21. Qd2
{[%clk 0:00:40]} 21... Qf6 {[%clk 0:01:34.5]} 22. Bb2 {[%clk 0:00:37.2]} 22...
Qd4+ {[%clk 0:01:35.2]} 0-1

[Event "*** Titled Tuesday Blitz"]
[Site "Chess.com"]
[Date "2018.09.04"]
[Round "3"]
[White "snowlord"]
[Black "catalin009"]
[Result "1-0"]
[WhiteElo "2716"]
[BlackElo "2448"]
[TimeControl "180+2"]
[EndTime "14:09:33 PDT"]
[Termination "snowlord won by resignation"]

1. e4 {[%clk 0:02:59.3]} 1... c5 {[%clk 0:02:52.6]} 2. Nc3 {[%clk 0:03:00.3]}
2... g6 {[%clk 0:02:51.4]} 3. d4 {[%clk 0:03:01]} 3... Bg7 {[%clk 0:02:51.6]} 4.
dxc5 {[%clk 0:03:01.6]} 4... Qa5 {[%clk 0:02:49.8]} 5. Bd2 {[%clk 0:02:52.9]}
5... Qxc5 {[%clk 0:02:50.4]} 6. Nd5 {[%clk 0:02:53.7]} 6... Na6 {[%clk
0:02:13.4]} 7. Nf3 {[%clk 0:01:50.4]} 7... Nf6 {[%clk 0:01:35]} 8. b4 {[%clk
0:01:40.5]} 8... Qd6 {[%clk 0:01:06.2]} 9. Bf4 {[%clk 0:01:33.3]} 9... Qe6
{[%clk 0:00:56.8]} 10. Ng5 {[%clk 0:01:33.3]} 10... Qg4 {[%clk 0:00:23.3]} 11.
Nxf6+ {[%clk 0:01:25.6]} 11... Bxf6 {[%clk 0:00:22]} 12. Qxg4 {[%clk 0:01:19.4]}
12... Bxa1 {[%clk 0:00:23.4]} 13. Bxa6 {[%clk 0:01:19.6]} 13... bxa6 {[%clk
0:00:23.8]} 14. O-O {[%clk 0:01:17.8]} 14... Bf6 {[%clk 0:00:25.1]} 15. e5
{[%clk 0:01:16]} 15... Bg7 {[%clk 0:00:26.2]} 16. Qf3 {[%clk 0:01:11.4]} 16...
Rb8 {[%clk 0:00:27.5]} 17. e6 {[%clk 0:01:10.7]} 1-0